bitfinex/quotes_ETHUSD_20241215
["timestamp","ask_amount","ask_price","bid_price","bid_amount"]
[1734289178115,0.88843926,3896.9,3896.5,2.56639]
[1734289178515,1.07581449,3897.1,3896.5,2.56639]
[1734289178826,1.96421836,3897.1,3896.5,2.56639]
[1734289179031,1.33260581,3897.0,3896.5,2.56639]
[1734289179231,1.07581449,3897.1,3896.5,2.56639]
[1734289179525,2.41055715,3897.1,3896.5,2.56639]
[1734289179688,2.22103979,3897.0,3896.5,2.56639]
[1734289180685,1.07581449,3897.0,3896.5,2.56639]
[1734289180925,1.9642729,3897.0,3896.5,2.56639]
[1734289181124,1.33268761,3896.9,3896.5,2.56639]
[1734289182124,0.88851256,3896.8,3896.5,2.56639]
[1734289182324,1.07581449,3897.0,3896.5,2.56639]
[1734289182527,3.29715285,3896.9,3896.5,2.56639]
[1734289182725,0.88853534,3896.8,3896.5,2.56639]
[1734289183039,1.07581449,3896.9,3896.5,2.56639]
[1734289183241,1.96440592,3896.9,3896.5,2.56639]
[1734289183771,2.22159519,3896.8,3896.5,2.56639]
[1734289183929,2.22159519,3896.8,3896.4,0.7948]
[1734289184130,3.29740968,3896.8,3896.4,0.7948]
[1734289184352,0.88859143,3896.7,3896.4,0.7948]
[1734289184566,1.07581449,3896.8,3896.4,0.7948]
[1734289184974,2.99348354,3896.7,3896.0,2.56667]
[1734289185140,2.22193586,3896.6,3896.0,2.56667]
[1734289185325,1.84741449,3896.7,3896.0,2.56667]
[1734289185666,2.22210304,3896.6,3896.0,2.56667]
[1734289187619,0.88880296,3896.5,3896.0,2.56667]
[1734289187824,1.84741449,3896.7,3896.1,3.0]
[1734289188067,2.2224542,3896.6,3896.1,3.0]
[1734289188272,0.88898168,3896.5,3896.1,3.0]
[1734289189379,0.88898168,3896.4,3896.1,3.0]
[1734289189703,1.07581449,3896.6,3896.1,3.0]
[1734289189908,0.88919222,3896.5,3896.1,5.56664]
[1734289190271,0.88919222,3896.4,3896.1,5.56664]
[1734289190474,1.07581449,3896.6,3896.1,5.56664]
[1734289190696,2.2232942,3896.5,3896.1,5.56664]
[1734289190901,0.88931768,3896.4,3896.1,5.56664]
[1734289191081,1.07581449,3896.6,3896.1,5.56664]
[1734289191283,2.22328505,3896.5,3896.1,5.56664]
[1734289191467,0.88931402,3896.4,3896.1,5.56664]
[1734289191667,1.07581449,3896.5,3896.1,5.56664]
[1734289191867,0.88945838,3896.4,3896.1,5.56664]
[1734289192127,1.07581449,3896.6,3896.1,5.56664]
[1734289192425,3.29944867,3896.5,3896.1,5.56664]
[1734289192740,0.88945367,3896.4,3896.1,5.56664]
[1734289193042,1.07581449,3896.5,3896.0,3.0]
[1734289193336,0.88954301,3896.4,3896.0,3.0]
[1734289193521,1.07581449,3896.5,3896.0,3.0]
[1734289193721,0.8896343,3896.4,3896.0,3.0]
[1734289193926,1.07581449,3896.5,3896.1,3.0]
[1734289194230,2.22419872,3896.4,3896.1,3.0]
[1734289194388,1.07581449,3896.5,3896.1,3.0]
[1734289194590,2.22431018,3896.4,3896.1,2.56664]
[1734289194789,0.88972407,3896.3,3896.1,2.56664]
[1734289194989,1.07581449,3896.5,3896.1,2.56664]
[1734289195299,2.22429995,3896.4,3896.1,2.56664]
[1734289195496,0.88971998,3896.3,3896.1,2.56664]
[1734289195698,1.07581449,3896.5,3896.1,2.56664]
[1734289195913,2.22452043,3896.4,3896.1,2.56664]
[1734289196114,0.88980817,3896.3,3896.1,2.56664]
[1734289196283,1.07581449,3896.4,3896.1,2.56664]
[1734289196484,0.8899074,3896.3,3896.1,2.56664]
[1734289196679,1.07581449,3896.4,3896.1,2.56664]
[1734289196881,0.88990467,3896.3,3896.1,2.56664]
[1734289197132,1.07581449,3896.5,3896.1,2.56664]
[1734289197336,2.2247493,3896.4,3896.1,2.56664]
[1734289197537,0.88989972,3896.3,3896.1,2.56664]
[1734289197743,1.07581449,3896.5,3896.1,2.56664]
[1734289198038,2.22476895,3896.4,3896.1,2.56664]
[1734289198240,0.88990758,3896.3,3896.1,2.56664]
[1734289198541,1.07581449,3896.5,3896.1,2.56664]
[1734289198740,2.22482527,3896.4,3896.1,2.56664]
[1734289198941,0.88993011,3896.3,3896.1,2.56664]
[1734289199146,1.07581449,3896.5,3896.1,2.56664]
[1734289199317,2.22485168,3896.4,3896.1,2.56664]
[1734289199513,0.88994067,3896.3,3896.1,2.56664]
[1734289199705,1.07581449,3896.5,3896.1,2.56664]
[1734289199902,2.22487556,3896.4,3896.1,2.56664]
[1734289200233,0.88995022,3896.3,3896.2,0.8253]
[1734289200400,0.88995022,3896.3,3895.7,0.51701308]
[1734289200401,0.7968,3896.4,3895.8,0.8253]
[1734289200600,0.88996966,3896.3,3895.8,0.8253]
[1734289200801,1.07581449,3896.4,3896.0,2.56671]
[1734289200995,0.88996077,3896.3,3896.1,3.0]
[1734289201200,2.22497803,3896.2,3895.8,3.39216]
[1734289201451,0.88999515,3896.1,3895.8,3.39216]
[1734289201655,1.07581449,3896.3,3895.8,3.39216]
[1734289201945,3.30069777,3896.2,3895.8,3.39216]
[1734289202152,0.88995331,3896.1,3895.8,0.8253]
[1734289202317,1.07581449,3896.2,3895.9,2.56679]
[1734289202656,0.889902,3896.1,3895.9,2.56679]
[1734289202826,1.07581449,3896.3,3895.9,2.56679]
[1734289203146,2.22474208,3896.2,3895.9,2.56679]
[1734289203420,1.07581449,3896.3,3896.0,2.56673]
[1734289203571,0.8898491,3896.2,3896.0,2.56673]
[1734289203754,1.07581449,3896.3,3896.0,2.56673]
[1734289203928,4.09725204,3896.2,3895.7,2.56687]
[1734289204129,3.30045204,3896.1,3895.7,2.56687]
[1734289204469,0.88985502,3896.0,3895.7,2.56687]
[1734289204641,1.07581449,3896.1,3895.7,2.56687]
[1734289204844,2.22449698,3896.0,3895.7,2.56687]
[1734289205037,1.07581449,3896.1,3895.7,2.56687]
[1734289205239,0.8897933,3896.0,3895.9,2.5668]
[1734289205446,1.07581449,3896.2,3895.9,2.5668]
[1734289205674,0.7625,3896.5,3895.9,2.5668]
[1734289205675,0.88970896,3896.1,3895.9,3.3277]
[1734289205878,1.07581449,3896.2,3895.9,3.3277]
[1734289206040,0.88969477,3896.1,3895.9,3.3277]
[1734289206244,1.07581449,3896.2,3895.9,3.3277]
[1734289206455,0.88966686,3896.1,3895.9,3.3277]
[1734289206658,1.07581449,3896.2,3895.9,3.3277]
[1734289206855,0.88966432,3896.1,3895.9,3.3277]
[1734289207072,1.07581449,3896.2,3895.9,3.3277]
[1734289207276,0.88966447,3896.1,3895.9,0.7609]
[1734289207475,1.07581449,3896.2,3896.0,2.56673]
[1734289207644,1.07581449,3896.3,3896.0,2.56673]
[1734289207845,2.224027,3896.2,3896.0,2.56673]
[1734289208062,1.07581449,3896.3,3896.0,2.56673]
[1734289208374,2.22401913,3896.2,3896.0,2.56673]
[1734289208545,0.88959719,3896.1,3896.0,2.56673]
[1734289208744,2.22400597,3896.2,3896.0,2.56673]
[1734289208949,0.88959719,3896.1,3896.0,2.56673]
[1734289209173,1.07581449,3896.3,3896.1,2.56666]
[1734289209174,2.22401591,3896.2,3896.1,2.56666]
[1734289209380,0.88961626,3896.2,3896.1,2.56666]
[1734289209548,1.07581449,3896.4,3896.2,2.56654]
[1734289209768,0.88956478,3896.3,3896.2,2.56654]
[1734289210101,0.88956478,3896.3,3895.9,0.7609]
[1734289210102,1.65206478,3896.3,3895.9,2.56677]
[1734289210404,3.29980222,3896.2,3895.9,2.56677]
[1734289210546,0.88956478,3896.1,3895.9,2.56677]
[1734289210750,1.07589567,3896.2,3895.9,2.56677]
[1734289211090,0.88960539,3896.1,3895.9,2.56677]
[1734289211391,1.07589567,3896.2,3895.5,3.3279]
[1734289211598,0.88958683,3896.1,3896.0,2.56673]
[1734289211757,1.83839567,3896.3,3896.0,2.56673]
[1734289211952,2.2239236,3896.2,3896.0,2.56673]
[1734289212182,1.83839567,3896.3,3896.0,2.56673]
[1734289212383,2.22396815,3896.2,3896.0,2.56673]
[1734289212586,0.88957759,3896.1,3896.0,2.56673]
[1734289212754,0.88957759,3896.1,3895.6,3.0]
[1734289212755,0.88957759,3896.1,3895.8,2.56686]
[1734289212970,1.83839567,3896.3,3895.8,2.56686]
[1734289213179,2.22398482,3896.2,3895.8,2.56686]
[1734289213400,0.88959393,3896.1,3895.8,2.56686]
[1734289213559,1.83839567,3896.3,3895.8,2.56686]
[1734289213757,2.2239844,3896.2,3895.8,2.56686]
[1734289213958,2.22399597,3896.1,3895.8,2.56686]
[1734289214196,1.07589567,3896.2,3895.8,2.56686]
[1734289214396,2.22407536,3896.1,3895.8,2.56686]
[1734289214564,1.07589567,3896.2,3895.8,2.56686]
[1734289214778,2.2240065,3896.1,3895.8,2.56686]
[1734289214987,0.88960303,3896.0,3895.8,2.56686]
[1734289215266,1.07589567,3896.2,3895.8,2.56686]
[1734289215466,2.2240872,3896.1,3895.8,2.56686]
[1734289215707,0.88963488,3896.0,3895.8,2.56686]
[1734289215938,1.07589567,3896.2,3895.8,2.56686]
[1734289216065,2.2240467,3896.1,3895.8,2.56686]
[1734289216274,0.88961868,3896.0,3895.8,2.56686]
[1734289216492,1.07589567,3896.2,3895.8,2.56686]
[1734289216692,2.22401563,3896.1,3895.8,2.56686]
[1734289216868,0.88960625,3896.0,3895.8,2.56686]
[1734289217068,1.07589567,3896.2,3895.8,2.56686]
[1734289217265,2.2240148,3896.1,3895.8,2.56686]
[1734289217505,0.88960592,3896.0,3895.8,2.56686]
[1734289217719,1.07589567,3896.1,3895.8,2.56686]
[1734289217873,0.88962937,3896.0,3895.8,2.56686]
[1734289218073,1.07589567,3896.1,3895.8,2.56686]
[1734289218275,0.88962931,3896.0,3895.8,2.56686]
[1734289218545,1.07589567,3896.1,3895.8,2.56686]
[1734289218829,1.07589567,3896.1,3895.5,0.7609]
[1734289218830,2.22410921,3896.0,3895.6,2.56698]
[1734289218973,0.88964352,3895.9,3895.6,2.56698]
[1734289219319,1.07589567,3896.0,3895.6,2.56698]
[1734289219468,0.88964949,3895.9,3895.6,2.56698]
[1734289219669,1.07589567,3896.0,3895.6,2.56698]
[1734289219869,0.88964853,3895.9,3895.6,2.56698]
[1734289220070,1.07589567,3896.0,3895.6,2.56698]
[1734289220294,0.88964616,3895.9,3895.6,2.56698]
[1734289220497,1.07589567,3896.1,3895.6,2.56698]
[1734289220712,2.22405433,3896.0,3895.6,2.56698]
[1734289220912,0.88962173,3895.9,3895.6,2.56698]
[1734289221096,1.07589567,3896.1,3895.6,2.56698]
[1734289221299,2.224032,3896.0,3895.6,2.56698]
[1734289221616,0.8896128,3895.9,3895.6,2.56698]
[1734289221831,1.07589567,3896.1,3895.8,2.56686]
[1734289221979,2.22400217,3896.0,3895.8,2.56686]
[1734289222169,1.07589567,3896.1,3895.8,2.56686]
[1734289222370,0.8895884,3896.0,3895.8,2.56686]
[1734289222589,1.07589567,3896.1,3895.8,2.56686]
[1734289222813,0.88959132,3896.0,3895.9,2.5668]
[1734289223015,0.88959132,3896.0,3895.9,3.3448]
[1734289223316,1.07589567,3896.2,3895.9,3.3448]
[1734289223487,0.8895833,3896.1,3895.9,3.3448]
[1734289223801,1.07589567,3896.2,3895.9,0.778]
[1734289223999,0.88956245,3896.1,3896.0,2.56672]
[1734289224321,0.88961914,3896.1,3896.0,2.56672]
[1734289226223,2.22418448,3896.1,3896.0,2.56672]
[1734289228923,2.22475958,3896.1,3896.0,2.56672]
[1734289229489,3.30065525,3896.1,3896.0,2.56672]
[1734289233135,2.22475958,3896.1,3896.0,2.56672]
[1734289233278,3.30110975,3896.1,3896.0,2.56672]
[1734289236109,2.22521408,3896.1,3896.0,2.56672]
[1734289237021,3.30178951,3896.1,3896.0,2.56672]
[1734289237232,3.301786,3896.1,3896.0,2.56672]
[1734289237442,2.22521408,3896.1,3896.0,2.56672]
[1734289237879,2.41194024,3896.1,3895.9,0.778]
[1734289238058,2.15060885,3896.5,3896.0,4.0108969]
[1734289238059,1.07656375,3896.3,3896.0,4.0108969]
[1734289238239,1.07656375,3896.5,3896.4,2.56647]
[1734289238444,3.30180272,3896.5,3896.4,2.56647]
[1734289238760,0.89009559,3896.5,3896.4,2.56647]
[1734289238924,1.07656375,3896.7,3896.6,2.56633]
[1734289239124,3.30167903,3896.7,3896.6,2.56633]
[1734289239928,2.22511528,3896.7,3896.6,2.56633]
[1734289240124,0.7803,3897.2,3896.6,7.7880789]
[1734289240125,1.07656375,3897.0,3896.6,7.7880789]
[1734289240362,0.7803,3897.5,3897.0,0.7733]
[1734289240363,1.07656375,3897.3,3897.0,0.7733]
[1734289240530,1.07656375,3897.5,3897.3,2.56587]
[1734289240736,0.88939543,3897.4,3897.3,2.56587]
[1734289241573,2.93090885,3897.9,3897.3,2.56587]
[1734289241574,1.07656375,3897.6,3897.3,2.56587]
[1734289241876,0.88895002,3897.5,3897.3,2.56587]
[1734289242233,0.88895002,3897.5,3897.4,2.56581]
[1734289242466,1.07656375,3897.7,3897.2,1.00879627]
[1734289242649,1.07656375,3898.0,3897.5,1.78209627]
[1734289242846,1.07656375,3898.1,3897.9,2.56548]
[1734289243472,1.07656375,3898.2,3897.9,2.56548]
[1734289243680,0.88798813,3898.1,3897.9,2.56548]
[1734289244477,0.7803,3898.3,3897.9,2.56548]
[1734289244781,0.23927957,3898.2,3897.9,2.56548]
[1734289246737,0.7803,3898.6,3897.9,2.56548]
[1734289246934,0.88676317,3898.5,3897.9,2.56548]
[1734289247562,0.7803,3898.6,3897.5,1.78209627]
[1734289247873,1.85686375,3898.8,3898.2,2.56527]
[1734289248174,2.21606128,3898.7,3898.2,2.56527]
[1734289248472,0.4072925,3898.6,3898.2,2.56527]
[1734289248634,0.7803,3898.8,3898.2,2.56527]
[1734289248835,0.88611368,3898.7,3898.2,2.56527]
[1734289249433,0.7803,3898.8,3898.2,2.56527]
[1734289250066,0.7803,3898.8,3898.4,2.56514]
[1734289250287,0.34693595,3898.8,3898.4,2.56514]
[1734289250778,0.0308057,3898.7,3898.4,2.56514]
[1734289251132,0.806,3899.1,3898.4,2.56514]
[1734289251576,0.02862243,3899.0,3898.4,2.56514]
[1734289252070,0.02862243,3899.0,3898.5,2.56508]
[1734289252487,0.02862243,3899.0,3898.6,0.7999]
[1734289252663,0.02862243,3899.0,3898.6,3.36491]
[1734289252858,0.806,3899.4,3898.8,2.56487]
[1734289253090,0.806,3899.4,3898.9,2.56481]
[1734289255896,0.806,3899.4,3898.6,0.7999]
[1734289256137,0.7661,3899.7,3899.0,2.56473]
[1734289256244,0.17748963,3899.6,3899.0,2.56473]
[1734289257580,0.17748963,3899.6,3898.7,2.5649]
[1734289257905,0.17748963,3899.6,3898.8,2.56488]
[1734289258047,1.1862859,3899.6,3898.8,2.56488]
[1734289262188,1.1862859,3899.6,3898.6,0.7999]
[1734289262491,0.51387149,3900.0,3898.3,1.00879627]
[1734289262492,1.00879627,3899.3,3898.3,3.0]
[1734289262652,1.00879627,3899.3,3898.3,2.56519]
[1734289263386,1.00879627,3899.3,3898.2,3.38978]
[1734289263593,0.8078,3899.2,3898.3,3.0]
[1734289264042,0.8078,3899.2,3898.3,2.5652]
[1734289264198,0.8078,3899.2,3898.3,2.90417]
[1734289267176,0.02445375,3899.1,3898.3,2.90417]
[1734289268627,0.02445375,3899.1,3898.3,0.33897]
[1734289269630,0.02445375,3899.1,3898.3,2.90418]
[1734289270876,0.02445375,3899.1,3898.6,2.56501]
[1734289271076,0.832,3899.5,3898.7,0.338711]
[1734289271524,0.02458738,3899.4,3898.7,0.338711]
[1734289272085,0.02458738,3899.4,3899.2,2.56461]
[1734289272524,0.832,3899.9,3899.2,2.56461]
[1734289272715,0.02417459,3899.3,3899.2,2.56461]
[1734289272914,0.832,3899.9,3899.2,2.56461]
[1734289273119,0.02417459,3899.3,3899.2,2.56461]
[1734289273360,0.832,3899.9,3899.4,2.56448]
[1734289273565,2.56362,3900.8,3899.3,0.8221]
[1734289273566,0.832,3900.7,3899.3,0.8221]
[1734289273922,0.02532353,3900.6,3899.3,0.8221]
[1734289274122,0.02532353,3900.6,3899.4,2.56449]
[1734289274342,0.8135,3900.5,3899.4,2.56449]
[1734289274527,0.83877901,3900.5,3899.4,2.56449]
[1734289274756,0.3920025,3900.4,3899.4,2.56449]
[1734289274960,0.41723699,3900.4,3899.5,2.56441]
[1734289275867,0.41723699,3900.4,3899.6,2.56436]
[1734289276026,0.02523449,3900.4,3899.6,2.56436]
[1734289276227,0.02523449,3900.4,3899.7,2.56429]
[1734289276460,0.02523449,3900.4,3899.8,2.56419]
[1734289277637,0.02523449,3900.4,3899.9,2.56413]
[1734289278184,0.8135,3900.5,3899.9,2.56413]
[1734289278800,0.02544819,3900.4,3899.9,2.56413]
[1734289279163,0.8135,3900.5,3900.0,2.56403]
[1734289279373,0.7923,3901.0,3900.1,2.56402]
[1734289279897,0.02561693,3900.9,3900.2,2.56397]
[1734289280711,0.02561693,3900.9,3899.9,0.43769263]
[1734289280712,0.02561693,3900.9,3900.0,2.56409]
[1734289280884,0.15900717,3900.9,3900.0,2.56409]
[1734289282502,0.02561693,3900.9,3900.0,2.56409]
[1734289283414,0.7923,3900.6,3899.3,0.7676]
[1734289283568,0.7923,3900.5,3899.4,3.0]
[1734289283766,0.81793509,3900.5,3899.5,0.37676]
[1734289284167,0.81793509,3900.5,3899.7,2.56429]
[1734289284367,0.81793509,3900.5,3899.8,0.7676]
[1734289284882,0.81793509,3900.5,3899.5,3.33202]
[1734289286887,0.81484577,3900.5,3899.5,3.33202]
[1734289287415,0.81484577,3900.5,3899.6,2.56436]
[1734289287587,0.81484577,3900.5,3899.7,0.48442156]
[1734289289602,0.81484577,3900.5,3899.9,2.56415]
[1734289293312,0.81484577,3900.5,3899.7,1.49321783]
[1734289293629,0.02563509,3900.5,3900.1,2.56403]
[1734289293844,0.7923,3900.8,3900.1,2.56403]
[1734289294119,0.02575723,3900.7,3900.3,2.56387]
[1734289294520,0.7923,3900.8,3900.3,2.56387]
[1734289294723,0.02570171,3900.6,3900.4,2.820207]
[1734289294887,0.02583814,3900.7,3900.4,2.56382]
[1734289295082,0.8166,3901.4,3900.4,2.56382]
[1734289295417,0.02591356,3901.3,3900.5,0.7703]
[1734289296182,0.02591356,3901.3,3900.5,1.103712]
[1734289297509,0.8166,3901.2,3900.2,2.56397]
[1734289297918,0.02592705,3901.1,3900.2,2.56397]
[1734289298432,0.8166,3901.0,3900.2,2.56397]
[1734289298856,0.02651853,3900.9,3900.2,2.56397]
[1734289299465,0.02651853,3900.9,3900.1,4.77909627]
[1734289299617,0.02651853,3900.9,3900.0,3.07178072]
[1734289299618,0.02651853,3900.9,3900.8,2.56357]
[1734289299818,0.8113,3901.3,3900.6,0.8062]
[1734289300120,0.0998886,3901.8,3901.3,2.56322]
[1734289301259,0.0998886,3901.8,3901.2,0.8062]
[1734289301458,0.0998886,3901.8,3901.1,2.56331]
[1734289302367,0.0998886,3901.8,3901.1,3.00114063]
[1734289303461,0.0998886,3901.8,3901.3,2.56323]
[1734289304421,0.0998886,3901.8,3901.4,2.56316]
[1734289308981,0.0998886,3901.8,3901.3,0.8062]
[1734289309947,0.0998886,3901.8,3901.3,3.3694]
[1734289310186,0.0998886,3901.8,3901.4,0.38072306]
[1734289310853,0.02526605,3901.7,3901.4,0.38072306]
[1734289311190,0.0998886,3901.8,3901.4,0.38072306]
[1734289311606,0.02526605,3901.7,3901.4,0.38072306]
[1734289311890,0.0998886,3901.8,3901.4,0.38072306]
[1734289312093,0.02526605,3901.7,3901.5,0.37501231]
[1734289312260,0.0998886,3901.8,3901.5,0.37501231]
[1734289312457,0.02526605,3901.7,3901.5,0.37501231]
[1734289312669,0.0998886,3901.8,3901.5,0.37501231]
[1734289313074,0.02526605,3901.7,3901.5,0.37501231]
[1734289313262,0.0998886,3901.8,3901.5,0.37501231]
[1734289313478,0.0998886,3901.8,3901.6,0.37444123]
[1734289313479,0.02526605,3901.7,3901.6,0.37444123]
[1734289313794,0.0998886,3901.8,3901.6,0.37444123]
[1734289314300,0.02526605,3901.7,3901.6,0.37444123]
[1734289314594,0.0998886,3901.8,3901.6,0.37444123]
[1734289315094,0.02581175,3901.7,3901.6,0.37444123]
[1734289315294,0.0998886,3901.8,3901.6,0.37444123]
[1734289315497,0.0998886,3901.8,3901.7,0.29375912]
[1734289315665,0.12574483,3901.8,3901.7,0.29375912]
[1734289316381,0.0998886,3901.8,3901.7,0.29375912]
[1734289317018,0.0998886,3901.8,3901.7,4.41553539]
[1734289317152,0.0998886,3901.8,3901.7,7.91267627]
[1734289318859,0.8268,3903.2,3901.9,2.56285]
[1734289319088,0.8268,3904.0,3903.1,1.79969627]
[1734289319266,0.8268,3904.0,3903.4,2.56186]
[1734289319603,0.8268,3904.0,3903.5,3.1118]
[1734289319807,0.8268,3904.0,3903.5,2.5618]
[1734289320175,2.56081,3905.1,3903.8,2.5616]
[1734289320368,0.8002,3904.9,3903.8,2.5616]
[1734289320599,0.8002,3904.9,3903.6,2.5617]
[1734289320769,0.02581466,3904.8,3903.6,2.5617]
[1734289321098,0.02495417,3904.8,3903.6,2.5617]
[1734289321297,0.27755862,3904.7,3903.6,2.5617]
[1734289321512,0.02495417,3904.8,3903.7,0.7871]
[1734289321513,2.58590417,3904.8,3903.7,0.7871]
[1734289321708,0.0250165,3904.7,3903.8,0.55]
[1734289322001,1.61249572,3905.6,3904.4,0.55]
[1734289322002,2.56043,3905.6,3904.4,0.55]
[1734289322222,0.1626733,3905.7,3904.6,3.11103]
[1734289322445,0.02583159,3905.5,3904.8,0.55]
[1734289322585,0.1626733,3905.7,3904.8,0.55]
[1734289322946,0.02569482,3905.4,3904.5,3.0]
[1734289323091,0.02569482,3905.4,3903.8,3.7871]
[1734289323287,2.56083,3905.0,3903.9,0.55]
[1734289323590,0.02695835,3904.9,3903.9,0.55]
[1734289323930,0.4661,3904.9,3903.9,0.55]
[1734289324141,0.302693,3904.8,3903.9,0.55]
[1734289324825,2.863653,3904.8,3903.9,0.55]
[1734289325018,2.56096,3904.8,3903.9,0.55]
[1734289325335,0.02686951,3904.7,3903.9,0.55]
[1734289325498,2.56121,3904.4,3903.4,0.7871]
[1734289325686,0.256121,3904.3,3903.5,0.55]
[1734289326020,0.28263948,3904.3,3903.5,0.55]
[1734289326930,0.256121,3904.3,3903.5,0.55]
[1734289327990,2.56137,3904.2,3902.9,0.12797392]
[1734289328191,2.56142,3904.1,3903.0,0.55]
[1734289328390,2.56142,3904.1,3902.9,0.91507392]
[1734289328391,0.35479372,3904.1,3902.9,0.7871]
[1734289328596,0.35479372,3904.1,3902.6,0.7871]
[1734289328597,2.5617,3903.7,3902.6,0.7871]
[1734289328915,2.58796163,3903.6,3902.6,0.7871]
[1734289329124,0.02622163,3903.6,3902.6,0.7871]
[1734289329920,2.58796163,3903.6,3902.7,0.55]
[1734289330449,2.56182,3903.5,3902.7,0.55]
[1734289330743,2.56182,3903.5,3902.6,0.7871]
[1734289330744,0.49208587,3903.4,3902.5,0.55]
[1734289330949,0.49208587,3903.4,3902.5,1.12699334]
[1734289331144,0.4661,3903.4,3902.5,1.12699334]
[1734289331687,0.4661,3903.4,3902.5,0.55]
[1734289331895,0.4661,3903.4,3902.4,0.55]
[1734289332120,0.02566663,3903.3,3902.4,0.55]
[1734289332302,2.56209,3903.1,3901.9,0.7871]
[1734289332519,2.56209,3903.1,3902.0,0.334996]
[1734289332711,0.02553326,3903.0,3902.0,0.334996]
[1734289332931,0.4661,3903.4,3902.0,0.334996]
[1734289332932,2.56195,3903.3,3902.0,0.334996]
[1734289333126,0.02562217,3903.2,3902.0,0.84477591]
[1734289333347,0.02562217,3903.2,3902.1,0.41947359]
[1734289333567,0.02562217,3903.2,3902.0,2.68509353]
[1734289333833,0.02562217,3903.2,3902.2,0.55]
[1734289334188,0.02562217,3903.2,3902.2,3.11264]
[1734289334492,0.02562217,3903.2,3902.4,2.56252]
[1734289334678,0.4661,3903.4,3902.5,0.311252]
[1734289334877,0.02566663,3903.3,3902.5,0.311252]
[1734289335505,0.02566663,3903.3,3902.2,0.55]
[1734289336293,0.02566663,3903.3,3902.3,2.56257]
[1734289336593,0.02566663,3903.3,3902.4,0.55]
[1734289336815,0.02566663,3903.3,3902.1,3.55]
[1734289337231,0.4661,3903.4,3902.1,3.55]
[1734289337432,0.02513165,3903.2,3902.2,0.689983]
[1734289337592,2.5871261,3903.3,3902.3,0.55]
[1734289337797,0.02508719,3903.1,3902.3,0.55]
[1734289338127,0.02504273,3903.0,3902.3,0.55]
[1734289338327,0.02504273,3903.0,3902.0,0.55]
[1734289338328,2.56214,3903.0,3902.0,0.55]
[1734289338494,0.49109827,3902.9,3902.0,0.55]
[1734289338697,0.49109827,3902.9,3902.0,0.68371]
[1734289340701,0.4661,3902.9,3902.0,0.68371]
[1734289341947,0.02495381,3902.8,3902.0,0.68371]
[1734289342353,0.02495381,3902.8,3902.0,3.68371]
[1734289342664,0.4661,3902.9,3902.0,3.68371]
[1734289342890,0.4661,3902.9,3902.2,0.55]
[1734289343164,0.02479715,3902.8,3902.3,0.02562287]
[1734289343535,0.4661,3903.3,3902.3,0.02562287]
[1734289343738,0.4661,3903.3,3902.5,2.56245]
[1734289343937,0.02454371,3903.2,3902.5,2.56245]
[1734289344247,0.02454371,3903.2,3902.7,1.3022]
[1734289344447,0.02454371,3903.2,3902.9,0.55]
[1734289344640,0.4661,3903.7,3902.9,0.55]
[1734289345052,0.02451773,3903.6,3902.9,0.55]
[1734289346059,0.02451773,3903.6,3902.7,0.55]
[1734289346245,0.02451773,3903.6,3902.7,3.55]
[1734289346446,0.02451773,3903.6,3902.9,0.55]
[1734289346648,0.4661,3903.7,3902.9,0.55]
[1734289346846,0.02458231,3903.5,3902.9,0.55]
[1734289347055,0.02462676,3903.6,3902.9,0.55]
[1734289347252,0.02453786,3903.4,3902.9,0.55]
[1734289347450,0.02458231,3903.5,3902.9,1.2508317]
[1734289347613,0.02449341,3903.3,3902.9,0.55]
[1734289347812,0.02453786,3903.4,3902.9,0.55]
[1734289348013,0.4661,3903.7,3902.9,0.55]
[1734289348321,0.4661,3903.7,3902.9,2.56217]
[1734289348523,0.02462676,3903.6,3903.0,0.311217]
[1734289348728,0.02462676,3903.6,3903.1,1.3022]
[1734289348926,2.63942352,3904.8,3903.1,1.3022]
[1734289348927,0.4661,3904.0,3903.1,1.3022]
[1734289349141,0.4661,3904.0,3903.3,2.56187]
[1734289349380,0.02487855,3903.9,3903.3,2.56187]
[1734289349674,0.02487855,3903.9,3903.1,1.3022]
[1734289349675,0.02487855,3903.9,3903.1,4.3022]
[1734289351497,0.02487855,3903.9,3903.1,3.86426]
[1734289351648,0.02487855,3903.9,3903.2,0.386426]
[1734289352285,0.44097855,3904.0,3903.2,0.386426]
[1734289352456,0.02420861,3903.8,3903.2,0.386426]
[1734289352659,0.02425305,3903.9,3903.2,0.386426]
[1734289352973,0.44097855,3904.0,3903.2,0.386426]
[1734289353183,0.02425305,3903.9,3903.2,0.386426]
[1734289353571,0.44097855,3904.0,3903.2,0.386426]
[1734289353778,0.02425305,3903.9,3903.2,0.386426]
[1734289353953,0.44097855,3904.0,3903.2,0.386426]
[1734289354176,0.02425305,3903.9,3903.2,0.386426]
[1734289354353,0.44097855,3904.0,3903.2,0.386426]
[1734289354591,0.02425305,3903.9,3903.1,0.55]
[1734289354792,2.58579305,3903.9,3902.9,0.55]
[1734289355291,0.441,3903.8,3902.9,0.55]
[1734289355677,0.02416417,3903.7,3902.9,0.55]
[1734289358490,0.02416417,3903.7,3902.7,0.55]
[1734289358646,0.02416417,3903.7,3902.7,0.76554342]
[1734289359768,0.02416417,3903.7,3902.7,3.76554342]
[1734289360273,2.58583417,3903.7,3902.7,3.76554342]
[1734289360761,0.441,3903.6,3902.7,3.76554342]
[1734289360945,0.441,3903.6,3902.1,3.266025]
[1734289360946,0.441,3903.5,3902.1,1.532965]
[1734289361123,2.56167,3903.7,3902.1,1.532965]
[1734289361124,0.441,3903.2,3902.2,0.55]
[1734289361328,0.02365103,3903.1,3902.2,0.55]
[1734289361589,0.02365103,3903.1,3902.2,1.0145675]
[1734289361763,0.02365103,3903.1,3902.1,0.8296]
[1734289361927,0.441,3903.0,3901.9,2.56285]
[1734289362127,0.02356211,3902.9,3901.9,2.56285]
[1734289363148,0.02356211,3902.9,3902.0,0.55]
[1734289363345,0.02356211,3902.9,3902.0,3.55]
[1734289363563,0.02356211,3902.9,3902.0,4.34479697]
[1734289363889,0.441,3902.5,3901.5,0.8296]
[1734289364164,0.02465648,3902.4,3901.5,0.8296]